Cogmind - Beta 12 @@@ ROGUE MODE // 2023.04.10 @ 06:50:47 // Winter2022/Polymind Player: Benkyo Result: Destroyed by as-54813 with Assembled Blade Performance ------------- Evolutions (0) 0 Regions Visited (4) 800 Robots Destroyed (10) 50 Value Destroyed (205) 205 Prototype IDs (28) 560 Alien Tech Used (0) 0 Bonus (2810) 2810 TOTAL SCORE: 4395 Bonus ------- Polymind Skill 2510 Aligned with FarCom 300 Cogmind --------- Core Integrity 0/250 Matter 0/0 Energy 24/25 System Corruption 0% Temperature Hot (222) Movement Hovering (80) Location -9/Mines Parts ------- > --- POWER (1) -------- (None) > --- PROPULSION (1) --- Combat Antigrav System > --- UTILITY (22) ----- Advanced Launcher Guidance Computer Improved Target Analyzer Experimental Core Analyzer Improved Armor Integrity Analyzer EX Chip 1 EX Chip 1 EX Chip 1 EX Chip 1 EX Chip 1 EX Chip 1 EX Chip 1 EX Chip 1 EX Chip 1 EX Chip 2 EX Chip 2 EX Chip 2 EX Chip 2 > --- WEAPON (2) ------- (None) > --- INVENTORY (1) ---- (None) Peak State ------------ > --- POWER ------------ Heavy Deuterium Engine > --- PROPULSION ------- Combat Antigrav System > --- UTILITY ---------- Advanced Launcher Guidance Computer Improved Target Analyzer Experimental Core Analyzer Improved Armor Integrity Analyzer EX Chip 1 EX Chip 1 EX Chip 1 EX Chip 1 EX Chip 1 EX Chip 1 EX Chip 1 EX Chip 1 EX Chip 1 EX Chip 1 EX Chip 2 EX Chip 2 EX Chip 2 EX Chip 2 EX Chip 2 EX Chip 2 EX Chip 2 EX Chip 2 > --- WEAPON ----------- AWS/EX-DEC > --- INVENTORY -------- Deploy-a-Sentry [Rating: 99] Favorites ----------- Power Light Angular Momentum Engine Engine Light Angular Momentum Engine Propulsion Carbon-fiber Leg Leg Carbon-fiber Leg Hover Unit Combat Antigrav System Flight Unit Flight Unit Utility EX Chip 1 Device Improved Heat Sink Processor Advanced Launcher Guidance Computer Hackware EX Chip 1 Weapon Beamcaster Energy Gun Beamcaster Ballistic Gun Light Assault Rifle Build | -11 -10 -10 -10 -9 ------- Run | Jun Mat Min Exi Min Slots Evolved . | . . . . . Power . | . . . . . Propulsion . | . . . . . Utility . | . . . . . Weapon . | . . . . . Parts Attached . | . . . . . Power . | . . . . . Engine . | . . . . . Core . | . . . . . Reactor . | . . . . . Propulsion . | . . . . . Treads . | . . . . . Leg . | . . . . . Wheel . | . . . . . Hover . | . . . . . Flight . | . . . . . Utility . | . . . . . Device . | . . . . . Storage . | . . . . . Processor . | . . . . . Hackware . | . . . . . Protection . | . . . . . Artifact . | . . . . . Weapon . | . . . . . Energy Gun . | . . . . . Energy Cannon . | . . . . . Ballistic Gun . | . . . . . Ballistic Cannon . | . . . . . Launcher . | . . . . . Special Weapon . | . . . . . Impact Weapon . | . . . . . Slashing Weapon . | . . . . . Piercing Weapon . | . . . . . Special Melee Weapon . | . . . . . Unidentified Prototypes . | . . . . . Parts Lost 7 | . . . . 7 Power 1 | . . . . 1 Propulsion . | . . . . . Utility 5 | . . . . 5 Weapon 1 | . . . . 1 Highest Loss Streak 7 | . . . . 7 To Critical Strikes . | . . . . . Average Slot Usage (%) 84 | . 29 100 98 94 Engine 12 | . 7 16 9 3 Leg 20 | . . 30 16 . Flight 5 | . 14 4 . . Device 20 | . . 30 16 . Processor 2 | . . . 7 15 Hackware 9 | . . . 34 67 Energy Gun 10 | . . 14 9 3 Ballistic Gun 2 | . 7 2 . . Naked Turns 172 | . 171 1 . . Heaviest Build 21 | . 4 16 21 21 Greatest Support 30 | 3 8 30 30 21 Greatest Overweight (x) . | . . . . . Average Overweight (x) . | . . . . . Largest Inventory Capacity 1 | . . 1 1 1 Average Capacity . | . . . 1 1 Most Carried 1 | . . . 1 1 Average Carried . | . . . . . Final Capacity 1 | . . 1 1 1 Final Carried 1 | . . . 1 . Class Distribution -------------------- 59% | Grunt 15% | Cogmind 13% | Tinkerer 11% | Swarmer Dominant Class ---------------- Cogmind | -10/Materials Grunt | -10/Mines Tinkerer | -10/Exiles Tinkerer | -9/Mines Resources | -11 -10 -10 -10 -9 ----------- Run | Jun Mat Min Exi Min Matter Collected . | . . . . . Remotely . | . . . . . Salvage Created 452 | . 21 337 . 94 Parts 21 | . 2 19 . . Haulers Intercepted . | . . . . . Recyclers Shooed . | . . . . . Parts Field Recycled . | . . . . . Retrieved Matter . | . . . . . Parts Self-Destructed . | . . . . . Prevented . | . . . . . Kills | -11 -10 -10 -10 -9 ------- Run | Jun Mat Min Exi Min Combat Hostiles Destroyed 17 | . 1 8 . 8 Guns 16 | . 1 8 . 7 Classes Destroyed 4 | . 1 2 . 1 Recycler 1 | . . 1 . . Swarmer 5 | . 1 4 . . Grunt 4 | . . 4 . . Assembled 8 | . . . . 8 Best Kill Streak 8 | . 1 3 . 8 Combat Bots Only 8 | . 1 2 . 8 Max Kills in Single Turn 1 | . 1 1 . 1 Gunslinging . | . . . . . Exploded . | . . . . . Melee . | . . . . . Uniques/NPCs Destroyed . | . . . . . Combat | -11 -10 -10 -10 -9 -------- Run | Jun Mat Min Exi Min Damage Taken 873 | . 71 185 . 617 Core 269 | . 47 53 . 169 Absorbed by Shields . | . . . . . Core Remaining (%) 100 | 100 . . . . Volleys Fired 33 | . 11 22 . . Largest 1 | . 1 1 . . Hottest 75 | . 20 75 . . Shots Fired 51 | . 11 22 . 18 Gun 51 | . 11 22 . 18 Cannon . | . . . . . Launcher . | . . . . . Special . | . . . . . Kinetic 11 | . 11 . . . Thermal 22 | . . 22 . . Explosive . | . . . . . Electromagnetic 18 | . . . . 18 Robot Hit Streak 8 | . 3 6 . 8 Robot Miss Streak 5 | . 2 2 . 5 Penetration Max . | . . . . . Secondary Targets . | . . . . . Autonomous 18 | . . . . 18 Shots Hit Robots 38 | . 5 18 . 15 Core Hits 28 | . 3 10 . 15 Critical Kills . | . . . . . Critical Parts Destroyed . | . . . . . Critical Strikes 3 | . . 1 . 2 Burn 1 | . . 1 . . Corrupt 2 | . . . . 2 Melee Attacks . | . . . . . Impact . | . . . . . Slashing . | . . . . . Piercing . | . . . . . Sneak Attacks . | . . . . . Combat Hostiles . | . . . . . Follow-up Attacks . | . . . . . Damage Inflicted 832 | . 41 395 . 396 Guns 832 | . 41 395 . 396 Cannons . | . . . . . Explosions . | . . . . . Melee . | . . . . . Ramming . | . . . . . Kinetic 41 | . 41 . . . Thermal 395 | . . 395 . . Explosive . | . . . . . Electromagnetic 396 | . . . . 396 Impact . | . . . . . Slashing . | . . . . . Piercing . | . . . . . Highest Corruption . | . . . . . Average Corruption . | . . . . . Corruption Purged . | . . . . . Corruption Blocked . | . . . . . Overload Shots . | . . . . . Overflow Damage . | . . . . . Projectiles . | . . . . . Explosions . | . . . . . Melee . | . . . . . Knockbacks . | . . . . . Impact . | . . . . . Kinetic . | . . . . . Secondary . | . . . . . Self-Inflicted Damage . | . . . . . Shots . | . . . . . Rammed . | . . . . . Targets Rammed . | . . . . . Kicked . | . . . . . Crushed . | . . . . . Highest Temperature 224 | . 18 5 . 224 Average Temperature 53 | . 9 2 . 100 Received Heat Transfer 345 | . 18 27 . 300 Siege Activations . | . . . . . Robots Corrupted 1 | . . . . 1 Combat Hostiles 1 | . . . . 1 Parts Fried . | . . . . . Impact Corruptions . | . . . . . Robots Melted . | . . . . . Combat Hostiles . | . . . . . Parts Melted . | . . . . . Heat Transferred 740 | . . 740 . . Parts Sabotaged . | . . . . . Parts Stolen . | . . . . . Parts Stripped . | . . . . . Power Chain Reactions . | . . . . . Missiles Intercepted . | . . . . . Alert | -11 -10 -10 -10 -9 ------- Run | Jun Mat Min Exi Min Peak Influence 216 | . 216 214 . . Initial 84 | . . 84 . . Average 99 | . 71 116 . . Maximum Alert Level 1 | . 1 1 . . Low Security (%) 94 | 100 92 94 . 100 Level 1 5 | . 7 5 . . Level 2 . | . . . . . Level 3 . | . . . . . Level 4 . | . . . . . Level 5 . | . . . . . High Security . | . . . . . Max Security . | . . . . . Squads Dispatched 4 | . 3 1 . . Investigation 3 | . 2 1 . . Extermination . | . . . . . Reinforcement 1 | . 1 . . . Assault . | . . . . . Garrison . | . . . . . Intercept . | . . . . . Searches Triggered . | . . . . . Construction Impeded . | . . . . . Haulers Reinforced . | . . . . . Active Scanning Responses . | . . . . . Cargo Convoy Interrupts . | . . . . . Stealth | -11 -10 -10 -10 -9 --------- Run | Jun Mat Min Exi Min Distress Signals 1 | . 1 . . . Communications Jammed . | . . . . . Distress Signals . | . . . . . Times Spotted 46 | . 15 10 . 21 Peak Tracking Total 20 | . 7 3 . 20 Tactical Retreats 6 | . 3 2 . 1 Traps | -11 -10 -10 -10 -9 ------- Run | Jun Mat Min Exi Min Traps Triggered 1 | . 1 . . . Indirectly . | . . . . . Trap Hack Attempts . | . . . . . Triggered . | . . . . . Disarmed . | . . . . . Reprogrammed . | . . . . . Reused . | . . . . . Traps Extracted . | . . . . . Installed . | . . . . . Triggered . | . . . . . Machines | -11 -10 -10 -10 -9 ---------- Run | Jun Mat Min Exi Min Machines Disabled . | . . . . . Max in Single Turn . | . . . . . Machines Repaired . | . . . . . Machines Sabotaged . | . . . . . Overloaded Fab Kills . | . . . . . Hacking | -11 -10 -10 -10 -9 --------- Run | Jun Mat Min Exi Min Machines Accessed 9 | . 6 2 1 . Terminals 5 | . 5 . . . Fabricators . | . . . . . Repair Stations . | . . . . . Recycling Units 1 | . 1 . . . Scanalyzers . | . . . . . Garrison Access . | . . . . . Total Hacks 18 | . 15 2 1 . Successful 9 | . 6 2 1 . Failed 9 | . 9 . . . Catastrophic 3 | . 3 . . . Database Lockouts . | . . . . . Manual 3 | . 2 . 1 . Terminals 14 | . 14 . . . Fabricators . | . . . . . Repair Stations . | . . . . . Recycling Units 1 | . 1 . . . Scanalyzers . | . . . . . Garrison Access . | . . . . . Terminal Hacks 8 | . 5 2 1 . Prototype ID Bank 1 | . 1 . . . Open Door 2 | . . 2 . . Branch Access Points 1 | . 1 . . . Locate Traps 1 | . 1 . . . Zone Layout 2 | . 2 . . . EX-Prototype ID Bank 1 | . . . 1 . Fabricator Hacks . | . . . . . Repair Station Hacks . | . . . . . Recycling Unit Hacks . | . . . . . Scanalyzer . | . . . . . Garrison Access Hacks . | . . . . . Unauthorized Hacks 1 | . 1 . . . Terminals . | . . . . . Fabricators . | . . . . . Repair Stations . | . . . . . Recycling Units 1 | . 1 . . . Tunnel 1 | . 1 . . . Scanalyzers . | . . . . . Garrison Access . | . . . . . Data Cores Recovered . | . . . . . Used . | . . . . . Hacking Detections 5 | . 5 . . . Full Trace Events . | . . . . . Feedback Events . | . . . . . Feedback Blocked . | . . . . . Robot Schematics Acquired . | . . . . . Robots Built . | . . . . . Authchips . | . . . . . Time . | . . . . . Total Robot Build Rating . | . . . . . Part Schematics Acquired . | . . . . . Parts Built . | . . . . . Authchips . | . . . . . Time . | . . . . . Total Part Build Rating . | . . . . . Parts Repaired . | . . . . . Time . | . . . . . Parts Recycled . | . . . . . Recycled Matter . | . . . . . Retrieved Matter . | . . . . . Retrieved Components . | . . . . . Parts Scanalyzed . | . . . . . Part Schematics Acquired . | . . . . . Parts Damaged . | . . . . . Bothacking | -11 -10 -10 -10 -9 ------------ Run | Jun Mat Min Exi Min Used RIF Installer . | . . . . . Robots Hacked 1 | . 1 . . . Non-combat . | . . . . . Combat 1 | . 1 . . . Robot Hacks Applied 1 | . 1 . . . find_shortcuts 1 | . 1 . . . Relay Couplers Released . | . . . . . Fabnet Peak Effective % . | . . . . . Robots Rewired . | . . . . . Allies Hacked . | . . . . . Hacks Repelled . | . . . . . Allies | -11 -10 -10 -10 -9 -------- Run | Jun Mat Min Exi Min Total Allies . | . . . . . Largest Group . | . . . . . Highest-Rated Group . | . . . . . Highest-Rated Ally . | . . . . . Total Orders . | . . . . . Ally Attacks . | . . . . . Total Damage . | . . . . . Kills . | . . . . . Allies Corrupted . | . . . . . Allies Melted . | . . . . . Intel | -11 -10 -10 -10 -9 ------- Run | Jun Mat Min Exi Min Robot Analysis Total 2 | . 1 1 . . Derelict Logs Recovered 1 | . . 1 . . Drone Launches . | . . . . . Drone Recoveries . | . . . . . Exploration | -11 -10 -10 -10 -9 ------------- Run | Jun Mat Min Exi Min Turns Passed 1138 | 10 242 613 243 30 Spaces Moved 1285 | 19 414 570 256 26 Core 298 | 19 276 2 1 . Treads . | . . . . . Legs 517 | . . 420 97 . Wheels . | . . . . . Hover 184 | . . . 158 26 Flight 286 | . 138 148 . . Fastest Speed 37 | 50 37 37 50 80 Average Speed 79 | 50 45 98 95 80 Slowest Speed 120 | 50 50 120 120 80 Overloaded Moves . | . . . . . Propulsion Burnouts . | . . . . . Robots Hopped . | . . . . . Cave-ins Triggered . | . . . . . Exploration Rate (%) 49 | 2 77 98 69 3 Regions Visited 4 Branch Regions 3 Pre-discovered Areas 2 | . 1 1 . . Known Exits Taken 1 | . 1 . . . Unknown Exits Taken 3 | 1 . 1 1 . Scrap Searched 2 | . . 2 . . Spaces Dug . | . . . . . Terrain Destroyed . | . . . . . Melee . | . . . . . Projectile . | . . . . . AOE . | . . . . . Terrain Rammed . | . . . . . Walls Destroyed . | . . . . . Machines Disabled . | . . . . . Actions | -11 -10 -10 -10 -9 --------- Run | Jun Mat Min Exi Min Total 1367 | 18 457 601 255 36 Wait 52 | . 33 10 . 9 Move 1281 | 18 413 569 255 26 Hop . | . . . . . Pick Up . | . . . . . Fast Attach . | . . . . . Attach . | . . . . . Detach . | . . . . . Swap . | . . . . . Drop 1 | . . . . 1 Fire 33 | . 11 22 . . Melee . | . . . . . Ram . | . . . . . Kick . | . . . . . Crush . | . . . . . Escape Stasis . | . . . . . Rewire . | . . . . . Trap . | . . . . . Miscellaneous . | . . . . . Route ------- -11/Junkyard -10/Materials (discovered 3 exits: [*Mat] / *Min x2) -10/Mines (discovered 3 exits: [*Mat x2] / *Exi) -10/Exiles -9/Mines History --------- Turn | Location | Event 3 | -11/Junkyard | Discovered new exit (range 15) 11 | -11/Junkyard | Entered Materials 24 | -10/Materials | Discovered new exit (range 18) 72 | -10/Materials | Identified exit to Mines 150 | -10/Materials | Discovered new exit (range 5) 253 | -10/Materials | Entered Mines 254 | -10/Mines | Learned location of Storage (-8) 307 | -10/Mines | Met a Derelict shopkeep closing up shop 329 | -10/Mines | Received a Rocket Launcher from a helpful Derelict 412 | -10/Mines | Learned 2 Materials zone layouts 473 | -10/Mines | Discovered new exit (range 5) 485 | -10/Mines | Found the Drone Emporium 516 | -10/Mines | Deemed a non-threat by the Exiles lab entrance 729 | -10/Mines | Discovered new exit (range 3) 861 | -10/Mines | Discovered new exit (range 5) 866 | -10/Mines | Entered Exiles 895 | -10/Exiles | Met 8R-AWN 914 | -10/Exiles | Met EX-HEX 961 | -10/Exiles | Met EX-DEC 983 | -10/Exiles | Took control of EX-DEC (ally) 1003 | -10/Exiles | Met EX-BIN 1014 | -10/Exiles | Aligned with FarCom system 1015 | -10/Exiles | Given EX-Vault access code 1033 | -10/Exiles | Opened EX-Vault 1051 | -10/Exiles | Warned to stay clear of 0b10 Research branches 1103 | -10/Exiles | Discovered new exit (range 10) 1109 | -10/Exiles | Left Exiles lab with Deploy-a-Sentry 1109 | -10/Exiles | Entered Mines 1110 | -9/Mines | Assembled infested the area 1127 | -9/Mines | Core integrity fell below 50% 1137 | -9/Mines | Core integrity fell below 20% 1139 | -9/Mines | Destroyed by as-54813 with Assembled Blade Last Messages --------------- 01115_ as-75294 system terminally corrupted. 01119_ as-61036 destroyed. 01120_ as-08765 destroyed. 01120_ Acquired 9 Protomatter. 01122_ EX Chip 2 destroyed. 01125_ as-71538 destroyed. 01127_ as-33987 destroyed. 01127_ Acquired 9 Protomatter. 01128_ as-77677 destroyed. 01129_ as-51410 destroyed. 01130_ Acquired 10 Protomatter. 01131_ as-27872 destroyed. 01132_ AWS/EX-DEC destroyed. 01135_ EX Chip 2 destroyed. 01135_ EX Chip 1 destroyed. 01135_ Dropped Deploy-a-Sentry. 01137_ as-75467 destroyed. 01137_ EX Chip 2 destroyed. 01139_ Hvy. Deuterium Engine destroyed. 01139_ EX Chip 2 destroyed. Map ----- +----------------------------------------------------+ | ?????????????????????????????????????????????????? | | ?????????????????????????????????????????????????? | | ?????????????????????????????????????????????????? | | ?????????????????????????????????????????????????? | | ?????????????????????????????????????????????????? | | ?????????????????????????????????????????????????? | | ?????????????????????????????????????????????????? | | ?????????????????????????????????????????????????? | | ?????????????????????????????????????????????????? | | ?????????????????????????????????????????????????? | | ?????????????????????????????????????????????????? | | ?????????????????????????????????????????????????? | | ?????????????????????????????????????????????????? | | ?????????????????????????????????????????????????? | | ?????????????????????????????????????????????????? | | ?????????????????????????????????????????????????? | | ?????????????????????????????????????????????????? | | ?????????????????????????????????????????????????? | | ?????????????????????????????????????????????????? | | ?????????????????????????????????????????????????? | | ?????????????????????########????????????????????? | | ?????????????????????# #????????????????????? | | ?????????????????????#%a %a #????????????????????? | | ?????????????????????#a%a a #????????????????????? | | ???????????????# #####%aaa #????????????????????? | | ???????? a% aca #????????????????????? | | ?????????? ########% #????????????????????? | | ?????????????????????########????????????????????? | | ?????????????????????????????????????????????????? | | ?????????????????????????????????????????????????? | | ?????????????????????????????????????????????????? | | ?????????????????????????????????????????????????? | | ?????????????????????????????????????????????????? | | ?????????????????????????????????????????????????? | | ?????????????????????????????????????????????????? | | ?????????????????????????????????????????????????? | | ?????????????????????????????????????????????????? | | ?????????????????????????????????????????????????? | | ?????????????????????????????????????????????????? | | ?????????????????????????????????????????????????? | | ?????????????????????????????????????????????????? | | ?????????????????????????????????????????????????? | | ?????????????????????????????????????????????????? | | ?????????????????????????????????????????????????? | | ?????????????????????????????????????????????????? | | ?????????????????????????????????????????????????? | | ?????????????????????????????????????????????????? | | ?????????????????????????????????????????????????? | | ?????????????????????????????????????????????????? | | ?????????????????????????????????????????????????? | +----------------------------------------------------+ Best States ------------- Heat Dissipation 48 Energy Generation 23 Energy Capacity 235 Matter Stores 99 Matter Capacity 100 Sight Range 16 Terrain Scan Density 10 Resistance: EM 90 Evasion (%) 62 Launcher Accuracy 40 Target Analysis 6 Core Analysis 8 Armor Integrity Analysis 40 Offensive Hacking 70 Defensive Hacking 56 Item Schematics ----------------- None Robot Schematics ------------------ None Fabricated ------------ Nothing Alien Tech Used ----------------- None Achievements -------------- None Challenges ------------ None Polymind | -11 -10 -10 -10 -9 ---------- Run | Jun Mat Min Exi Min Hosts 3 | . 1 1 1 . Combat Hostiles 1 | . 1 . . . Allies 2 | . . 1 1 . Unique Host Classes 3 | . 1 1 1 . Average Host Suspicion 67 | . 100 93 . . Unsuspicious Activity 196 | . . . 16 180 Returns to Shadow . | . . . . . Fuzzy Dispatches . | . . . . . Protomatter Created 52 | . . 11 . 41 Used 53 | . 6 14 33 . Decayed . | . . . . . Highest Spend 33 | . 6 14 33 . Top 5 Hosts by Kills: SI-EKD(g) (-10/Mines: 8) EX-DEC (-10/Exiles: 8) S-10 Pest (-10/Materials: 1) Game ------ Seed NeutronGrapheneMantle Manual? 0 Play Time 00:14:56 Cumulative 470.8 hours Start 2023.04.10 @ 06:32:48 End 2023.04.10 @ 06:50:47 Sessions 1 Manual Loads 0 Difficulty Rogue Special Mode Winter2022/Polymind Game No. 87 Rogue 80 Adventurer 1 Explorer 6 Win Type - Total 37 Types 11/3/12/1/1/1/6/1/1 Lore% 92 Gallery% 92 Achievement% 83 Wizard Run 0 Options --------- ASCII 0 Keyboard 0 Movement Mouse Keybinds 0 Fullscreen 1 Font 18/SmallcapsGlow Map View 76x50 Tactical HUD 1 Map Filters NONE Filters NONE Steam 1 RUN: 22a62f1e-0d94-4e8f-9602-edba1155f557